fUSD/lending_fUSD_20260214
["ID","MTS","AMOUNT","RATE_DAILY","PERIOD"]
[405357349,1771074640074,-521.59491122,0.00017785,2]
[405357351,1771074640084,-599.0970274,0.00017786,2]
[405357353,1771074640093,-178125.1685529,0.00017786,2]
[405357355,1771074640109,-3398.5309369,0.00017786,2]
[405357357,1771074640119,-1275.5832697,0.00017786,2]
[405357359,1771074640130,-1744.11,0.00017786,2]
[405357361,1771074640141,-869.2126952,0.00017786,2]
[405357364,1771074640151,-1719.7238859,0.00017786,2]
[405357365,1771074640160,-6613.2875189,0.00017786,2]
[405357476,1771074643379,-5017.44955652,0.00017786,2]
[405357477,1771074644312,-538.95552511,0.00017786,2]
[405357478,1771074644324,-18203.58340277,0.00017786,2]
[405357479,1771074644334,-2706.41659723,0.00017786,2]
[405357480,1771074644347,-1046.59722918,0.00017786,2]
[405357481,1771074644378,-3347.50672832,0.00017786,2]
[405357482,1771074644462,-16917.69645496,0.00017786,2]
[405357483,1771074644474,-5938.03155075,0.00017786,2]
[405357484,1771074644487,-1935.4192,0.00017786,2]
[405357485,1771074644498,-64718.0614992,0.00017786,2]
[405357486,1771074645556,-1964.68966182,0.00017786,2]
[405357489,1771074645685,-9055.10036916,0.00017786,2]
[405357490,1771074645727,-417.84,0.00017786,2]
[405357491,1771074645892,-1430.73752724,0.00017786,2]
[405357509,1771074671031,500.0,8.915e-05,2]
[405357513,1771074675372,500.0,8.915e-05,2]
[405357514,1771074676405,501.83608545,8.915e-05,2]
[405357515,1771074676737,500.17089134,8.915e-05,2]
[405357516,1771074678806,164.29011684,8.915e-05,2]
[405357521,1771074681466,500.0,8.915e-05,2]
[405357522,1771074683166,500.0,8.915e-05,2]
[405357525,1771074724366,500.0,8.915e-05,2]
[405357526,1771074726318,200.41863357,8.915e-05,2]
[405357527,1771074732630,225.99617442,8.915e-05,2]
[405357528,1771074735525,500.0,8.915e-05,2]
[405357537,1771074911455,239.74479814,8.915e-05,2]
[405357543,1771074988446,500.0,8.915e-05,2]
[405357550,1771074996734,168.52412146,8.915e-05,2]
[405357552,1771074997690,500.0,8.915e-05,2]
[405357572,1771075264142,500.0,8.915e-05,2]
[405357573,1771075266536,500.0,8.915e-05,2]
[405357576,1771075268630,165.09005418,8.915e-05,2]
[405357577,1771075295735,164.52142092,8.915e-05,2]
[405357578,1771075313810,2176.45991047,0.0001,2]
[405357598,1771075740126,3416.14,0.00011944,2]
[405357599,1771075740307,3416.14,0.00012213,2]
[405357600,1771075740529,3416.14,0.00012483,2]
[405357601,1771075740727,3416.14,0.00012752,2]
[405357615,1771075832193,-322.59321388,0.00013022,2]
[405357616,1771075832204,-3093.54678612,0.00013022,2]
[405357617,1771075832213,-3416.14,0.00013291,2]
[405357618,1771075832222,-276.0,0.0001356,2]
[405357619,1771075832231,-1200.0,0.0001356,2]
[405357620,1771075832240,-300.0,0.0001356,2]
[405357621,1771075832249,-3416.14,0.00013561,2]
[405357622,1771075832258,-3416.14,0.0001383,2]
[405357623,1771075832267,-3416.14,0.00014099,2]
[405357624,1771075832276,-3416.14,0.00014369,2]
[405357625,1771075832285,-3416.14,0.00014638,2]
[405357626,1771075832294,-255.0,0.00014862,2]
[405357627,1771075832303,-3416.14,0.00014908,2]
[405357628,1771075832311,-579.0,0.00014916,2]
[405357629,1771075832320,-3416.14,0.00015177,2]
[405357630,1771075832329,-3416.14,0.00015447,2]
[405357631,1771075832338,-3416.14,0.00015716,2]
[405357632,1771075832347,-3409.80526731,0.00015985,2]
[405357633,1771075832358,-6.33473269,0.00015985,2]
[405357634,1771075832368,-494.67566892,0.00016042,2]
[405357635,1771075832379,-260.03248731,0.00016042,2]
[405357636,1771075832405,-61.70184377,0.00016042,2]
[405357637,1771075832414,-3416.14,0.00016255,2]
[405357638,1771075832424,-3416.14,0.00016524,2]
[405357639,1771075832434,-250.0,0.00016529,2]
[405357640,1771075832443,-3045.33709131,0.00016794,2]
[405357641,1771075832454,-370.80290869,0.00016794,2]
[405357642,1771075832464,-210.38820659,0.00017016,2]
[405357643,1771075832474,-255.0,0.00017062,2]
[405357644,1771075832483,-646.83232494,0.00017063,2]
[405357645,1771075832501,-1403.3982886,0.00017063,2]
[405357649,1771075837616,-390.62,0.00017063,2]
[405357653,1771075837778,-975.28938646,0.00017063,2]
[405357654,1771075837792,-381.889756,0.00017099,7]
[405357655,1771075837801,-1471.62,0.00017233,2]
[405357656,1771075837813,-200.0,0.00017278,2]
[405357657,1771075837822,-8268.84,0.00017575,2]
[405357658,1771075837834,-546.7,0.00017579,2]
[405357659,1771075837843,-155.31383889,0.00017579,2]
[405357660,1771075837852,-187.41,0.00017608,2]
[405357661,1771075837862,-250.0,0.00017647,2]
[405357662,1771075838045,-3615.43795551,0.00017675,2]
[405357663,1771075838066,-3567.5999856,0.00017686,2]
[405357664,1771075838077,-271.40381359,0.00017686,2]
[405357665,1771075838091,-1000.0,0.00017686,2]
[405357666,1771075838100,-2500.0,0.00017686,2]
[405357667,1771075838110,-483.27611961,0.00017742,2]
[405357668,1771075838120,-1697.1867286,0.00017759,2]
[405357669,1771075838129,-13801.77698574,0.00017759,2]
[405357670,1771075838151,-10681.64481775,0.00017759,2]
[405357671,1771075838161,-4528.30357259,0.00017759,2]
[405357672,1771075838171,-990.10542952,0.00017759,2]
[405357673,1771075838183,-2449.76239387,0.00017759,2]
[405357674,1771075838194,-966.55,0.00017759,2]
[405357675,1771075838210,-305.96311241,0.00017759,2]
[405357677,1771075839688,-2276.10399804,0.00017759,2]
[405357678,1771075839793,-96.7594782,0.00017759,2]
[405357679,1771075839807,-7842.71989803,0.00017759,2]
[405357680,1771075839859,-2473.58132636,0.00017759,2]
[405357681,1771075839973,-725.91164319,0.00017759,2]
[405357682,1771075840033,-870.11454357,0.00017759,2]
[405357688,1771075844549,-537.40360725,0.00017759,2]
[405357689,1771075844608,-90438.76364502,0.00017759,2]
[405357690,1771075844620,-1396.0216008,0.00017759,2]
[405357691,1771075844667,-4686.93045346,0.00017759,2]
[405357692,1771075844677,-500.0,0.00017785,2]
[405357693,1771075844688,-521.59491122,0.00017785,2]
[405357694,1771075844697,-500.0,0.00017785,2]
[405357695,1771075844707,-500.0,0.00017785,2]
[405357696,1771075844717,-500.0,0.00017785,2]
[405357697,1771075844727,-630.31,0.00017785,2]
[405357698,1771075844737,-500.0,0.00017785,2]
[405357699,1771075844746,-500.0,0.00017785,2]
[405357700,1771075844757,-1604.83532718,0.000179,2]
[405357701,1771075844767,-173.43456991,0.00017912,2]
[405357702,1771075844777,-160.0,0.00017912,2]
[405357704,1771075844787,-500.0,0.00017912,2]
[405357706,1771075844797,-1099.1227376,0.00017955,2]
[405357707,1771075844807,-500.0,0.00017989,2]
[405357708,1771075844816,-500.0,0.00017989,2]
[405357709,1771075844826,-151.0,0.00017989,2]
[405357710,1771075844836,-192.16036125,0.0001799,2]
[405357711,1771075844848,-501.89548392,0.00017999,2]
[405357712,1771075844858,-500.0,0.00017999,2]
[405357713,1771075844869,-500.0,0.00017999,2]
[405357714,1771075844880,-500.0,0.00017999,2]
[405357715,1771075844890,-500.0,0.00017999,2]
[405357716,1771075844899,-500.0,0.00017999,2]
[405357717,1771075844910,-500.0,0.00017999,2]
[405357718,1771075844920,-254.05100194,0.00017999,2]
[405357719,1771075844930,-271.49303279,0.00017999,2]
[405357720,1771075844939,-500.0,0.00017999,2]
[405357721,1771075844949,-503.07089959,0.00017999,2]
[405357722,1771075844958,-500.0,0.00017999,2]
[405357723,1771075844968,-500.0,0.00017999,2]
[405357724,1771075844978,-500.0,0.00017999,2]
[405357725,1771075844988,-640.02179385,0.00017999,2]
[405357726,1771075844999,-500.0,0.00017999,2]
[405357727,1771075845010,-500.0,0.00017999,2]
[405357728,1771075845020,-500.0,0.00017999,2]
[405357729,1771075845031,-500.0,0.00017999,2]
[405357730,1771075845041,-600.0,0.00017999,2]
[405357731,1771075845051,-610.61080205,0.00018,2]
[405357732,1771075845062,-246.219214,0.00018,2]
[405357733,1771075845073,-10785.18791204,0.00018,2]
[405357734,1771075845547,-3174.58947842,0.00018,2]
[405357735,1771075845561,-1735.5,0.00018,2]
[405357741,1771075868434,6090.081116,7.945e-05,2]
[405357757,1771076755024,2000.0,0.00022,120]
[405357762,1771076792089,-156.96,0.00017091,2]
[405357763,1771076792112,-279.09133719,0.00017136,2]
[405357772,1771076994905,-150.0,0.00016776,7]
[405357781,1771077031809,-155.511805,0.00016776,7]
[405357782,1771077031819,-525.79675041,0.00016799,2]
[405357783,1771077031830,-704.890961,0.00016799,2]
[405357784,1771077031842,-88.47228859,0.00016799,2]
[405357785,1771077031857,-353.78766281,0.00017136,2]
[405357786,1771077031867,-224.18708813,0.00017276,2]
[405357787,1771077031876,-151.0,0.00017283,2]
[405357788,1771077031887,-300.0,0.00017284,2]
[405357789,1771077031896,-197.0,0.00017284,2]
[405357790,1771077031905,-399.0,0.00017284,2]
[405357791,1771077031914,-300.0,0.00017285,2]
[405357792,1771077031924,-395.0,0.00017285,2]
[405357793,1771077031934,-288.11928169,0.00017285,2]
[405357794,1771077031943,-500.0,0.00017285,2]
[405357795,1771077031952,-190.04512295,0.00017285,2]
[405357796,1771077031961,-177.83570136,0.00017285,2]
[405357797,1771077031970,-528.46977076,0.00017285,2]
[405357798,1771077031980,-500.0,0.00017285,2]
[405357799,1771077031988,-587.59012017,0.00017285,2]
[405357800,1771077031997,-300.0,0.00017285,2]
[405357801,1771077032006,-300.0,0.00017285,2]
[405357802,1771077032015,-71920.24905919,0.00017286,2]
[405357803,1771077032041,-260486.31043701,0.00017286,2]
[405357804,1771077032052,-135198.70992357,0.00017286,2]
[405357805,1771077032063,-29836.03937551,0.00017286,2]
[405357806,1771077032075,-37478.39892822,0.00017286,2]
[405357807,1771077032086,-1254.41808677,0.00017286,2]
[405357824,1771077037793,-975.13,0.00017286,2]
[405357825,1771077037964,-821620.44818973,0.00017286,2]
[405357826,1771077037975,-261.20280604,0.00017485,2]
[405357827,1771077037985,-171.15,0.00017485,2]
[405357828,1771077037995,-500.0,0.00017485,2]
[405357829,1771077038005,-500.0,0.00017485,2]
[405357830,1771077038015,-300.0,0.00017485,2]
[405357831,1771077038026,-525.26,0.00017486,2]
[405357832,1771077038036,-487.0,0.00017486,2]
[405357833,1771077038046,-487.0,0.00017486,2]
[405357834,1771077038056,-487.0,0.00017486,2]
[405357835,1771077038066,-487.0,0.00017486,2]
[405357836,1771077038076,-487.0,0.00017486,2]
[405357837,1771077038085,-487.0,0.00017486,2]
[405357838,1771077038095,-487.0,0.00017486,2]
[405357839,1771077038105,-952.69,0.00017486,2]
[405357840,1771077038119,-501.2,0.00017599,2]
[405357841,1771077038133,-13107.509997,0.000176,3]
[405357842,1771077038142,-1319.16,0.00017639,2]
[405357843,1771077038152,-1000.0,0.00017659,2]
[405357844,1771077038162,-567.9760539,0.00017685,2]
[405357869,1771077038390,-4611.84753337,0.0001771,2]
[405357870,1771077038399,-1066.2865271,0.0001771,2]
[405357872,1771077038410,-662.96,0.0001771,2]
[405357874,1771077038419,-525.26,0.0001776,2]
[405357876,1771077038429,-150.0,0.00017768,2]
[405357878,1771077038439,-500.0,0.00017785,2]
[405357880,1771077038449,-524.29618187,0.00017785,2]
[405357882,1771077038459,-500.0,0.00017785,2]
[405357884,1771077038468,-500.0,0.00017785,2]
[405357886,1771077038478,-151.0,0.00017807,2]
[405357888,1771077038487,-500.0,0.00017808,2]
[405357890,1771077038497,-500.0,0.00017808,2]
[405357892,1771077038506,-500.0,0.00017808,2]
[405357894,1771077038515,-500.0,0.00017808,2]
[405357896,1771077038525,-500.0,0.00017808,2]
[405357898,1771077038534,-500.0,0.00017808,2]
[405357900,1771077038545,-500.0,0.00017808,2]
[405357902,1771077038555,-500.0,0.00017808,2]
[405357904,1771077038565,-500.0,0.00017808,2]
[405357906,1771077038575,-500.0,0.00017808,2]
[405357908,1771077038584,-262.50987843,0.00017808,2]
[405357910,1771077038594,-500.0,0.00017808,2]
[405357912,1771077038604,-300.0,0.00017809,2]
[405357914,1771077038615,-300.0,0.00017809,2]
[405357915,1771077038626,-500.0,0.00017809,2]
[405357916,1771077038636,-500.0,0.00017809,2]
[405357917,1771077038646,-369579.3530005,0.0001781,2]
[405357918,1771077038655,-2571.660851,0.0001781,2]
[405357919,1771077038665,-31103.0986863,0.0001781,2]
[405357920,1771077038674,-2546.5218722,0.0001781,2]
[405357921,1771077038683,-192.96871,0.0001785,2]
[405357922,1771077038692,-192.96871,0.0001785,2]
[405357923,1771077038702,-192.96871,0.0001785,2]
[405357924,1771077038711,-200.0,0.00017856,2]
[405357925,1771077038721,-818.35,0.00017886,2]
[405357926,1771077038730,-500.0,0.00017899,2]
[405357927,1771077038740,-500.0,0.00017899,2]
[405357928,1771077038749,-238.4314178,0.000179,2]
[405357929,1771077038759,-273.4536504,0.000179,2]
[405357930,1771077038768,-875.40147233,0.000179,2]
[405357931,1771077038778,-500.0,0.00017999,2]
[405357932,1771077038789,-500.0,0.00017999,2]
[405357933,1771077038799,-500.0,0.00017999,2]
[405357934,1771077038808,-500.0,0.00017999,2]
[405357935,1771077038818,-300.0,0.00017999,2]
[405357936,1771077038828,-500.0,0.00017999,2]
[405357937,1771077038837,-666.0,0.00017999,2]
[405357938,1771077038847,-500.0,0.00017999,2]
[405357939,1771077038862,-316.65250639,0.00017999,2]
[405357940,1771077038872,-500.0,0.00017999,2]
[405357941,1771077038882,-500.0,0.00017999,2]
[405357942,1771077038892,-500.0,0.00017999,2]
[405357943,1771077038903,-500.0,0.00017999,2]
[405357944,1771077038913,-500.0,0.00017999,2]
[405357945,1771077038923,-283.65,0.00017999,2]
[405357946,1771077038932,-165.28762974,0.00017999,2]
[405357947,1771077038942,-74463.17956291,0.00018,2]
[405357948,1771077038955,-1455.10728705,0.00018,2]
[405357950,1771077039951,-6950.05580902,0.00018,2]
[405357951,1771077040014,-6840.0,0.00018,2]
[405357952,1771077040295,-7238.45332901,0.00018,2]
[405357971,1771077045702,-6000.0,0.00018,2]
[405357973,1771077045714,-38809.69061371,0.00018,2]
[405357975,1771077045726,-4963.13366568,0.00018,2]
[405357988,1771077045980,-2073.8,0.00018,2]
[405358070,1771078017095,-266.81,0.000146,2]
[405358071,1771078017117,-290.72321719,0.00014648,2]
[405358094,1771078231875,-389.61678281,0.00014648,2]
[405358095,1771078231885,-250.0,0.00015006,2]
[405358096,1771078231895,-460.38476074,0.0001606,2]
[405358097,1771078231904,-250.0,0.00016112,2]
[405358098,1771078231915,-300.0,0.00016112,2]
[405358099,1771078231925,-187.41,0.00016607,2]
[405358100,1771078231935,-225.724123,0.00016741,7]
[405358101,1771078231944,-506.303,0.00016744,2]
[405358102,1771078231953,-300.0,0.00016883,2]
[405358103,1771078231963,-300.0,0.00016883,2]
[405358104,1771078231972,-300.0,0.00016883,2]
[405358105,1771078231982,-1200.0,0.00016883,2]
[405358106,1771078231992,-399.0,0.00016884,2]
[405358107,1771078232002,-300.0,0.00016884,2]
[405358108,1771078232011,-4903.82277693,0.00016885,2]
[405358109,1771078232021,-369.11264824,0.00016885,2]
[405358110,1771078232031,-4017.15328391,0.00016885,2]
[405358111,1771078232040,-238.681099,0.0001692,7]
[405358112,1771078232050,-450.0,0.00016983,2]
[405358114,1771078232059,-568.44762764,0.00016984,2]
[405358115,1771078232069,-500.0,0.00016984,2]
[405358116,1771078232078,-500.0,0.00016984,2]
[405358117,1771078232088,-500.0,0.00016984,2]
[405358118,1771078232097,-500.0,0.00016984,2]
[405358119,1771078232111,-500.0,0.00016984,2]
[405358120,1771078232121,-500.0,0.00016984,2]
[405358121,1771078232130,-500.0,0.00016984,2]
[405358122,1771078232140,-500.0,0.00016984,2]
[405358123,1771078232149,-649.46823817,0.00016984,2]
[405358124,1771078232159,-500.0,0.00016984,2]
[405358125,1771078232170,-500.0,0.00016984,2]
[405358126,1771078232180,-500.0,0.00016984,2]
[405358127,1771078232190,-500.0,0.00016984,2]
[405358128,1771078232200,-500.0,0.00016984,2]
[405358129,1771078232213,-500.0,0.00016984,2]
[405358130,1771078232223,-500.0,0.00016984,2]
[405358131,1771078232232,-500.0,0.00016984,2]
[405358132,1771078232242,-500.0,0.00016984,2]
[405358133,1771078232252,-500.0,0.00016984,2]
[405358134,1771078232262,-155.31383889,0.00016985,2]
[405358135,1771078232272,-667869.9803,0.00016985,2]
[405358136,1771078232287,-2500.0,0.00016986,2]
[405358137,1771078232297,-1000.0,0.00017085,2]
[405358138,1771078232307,-500.0,0.00017099,2]
[405358139,1771078232317,-500.0,0.00017099,2]
[405358140,1771078232327,-500.0,0.00017099,2]
[405358141,1771078232336,-500.0,0.00017099,2]
[405358142,1771078232346,-500.0,0.00017099,2]
[405358143,1771078232355,-529.15896665,0.00017099,2]
[405358144,1771078232368,-72.54756186,0.00017099,2]
[405358145,1771078232378,-250.0,0.00017099,2]
[405358146,1771078232388,-250.0,0.00017099,2]
[405358147,1771078232397,-250.0,0.00017099,2]
[405358148,1771078232407,-202.22637079,0.00017099,2]
[405358149,1771078232417,-250.0,0.00017099,2]
[405358150,1771078232426,-254.7033917,0.00017099,2]
[405358151,1771078232436,-269.20568524,0.00017099,2]
[405358152,1771078232445,-500.0,0.00017099,2]
[405358153,1771078232455,-500.0,0.00017099,2]
[405358154,1771078232464,-527.19404983,0.00017099,2]
[405358155,1771078232474,-250.0,0.00017099,2]
[405358156,1771078232483,-250.0,0.00017099,2]
[405358157,1771078232493,-250.0,0.00017099,2]
[405358158,1771078232503,-250.0,0.00017099,2]
[405358159,1771078232512,-250.0,0.00017099,2]
[405358160,1771078232522,-255.82247405,0.00017099,2]
[405358161,1771078232532,-210.07340461,0.00017099,2]
[405358162,1771078232542,-257.91778498,0.00017099,2]
[405358163,1771078232551,-500.0,0.00017099,2]
[405358164,1771078232561,-1000.0,0.00017186,2]
[405358165,1771078232571,-177.87,0.000172,2]
[405358166,1771078232581,-644.79274948,0.00017373,2]
[405358167,1771078232591,-200.0,0.00017584,2]
[405358168,1771078232601,-1000.0,0.00017622,2]
[405358169,1771078232610,-267.46074303,0.00017647,2]
[405358170,1771078232620,-554.7,0.00017678,2]
[405358171,1771078232629,-1846.36,0.00017728,2]
[405358172,1771078232638,-6842.23,0.00017728,2]
[405358173,1771078232647,-999.99,0.00017728,2]
[405358174,1771078232657,-7659.5,0.00017728,2]
[405358175,1771078232667,-150.99,0.00017728,2]
[405358176,1771078232676,-2105.4,0.00017728,2]
[405358177,1771078232686,-483.27611961,0.00017742,2]
[405358178,1771078232695,-1800.0,0.000178,2]
[405358179,1771078232705,-500.0,0.00017809,2]
[405358180,1771078232714,-20996.8769452,0.0001781,2]
[405358181,1771078232931,-224.18708813,0.00017852,2]
[405358182,1771078232947,-200.0,0.00017856,2]
[405358184,1771078232956,-6668.5965918,0.00017859,2]
[405358185,1771078232967,-500.0,0.00017861,2]
[405358186,1771078232976,-219.92883953,0.00017861,2]
[405358187,1771078232986,-500.0,0.00017861,2]
[405358188,1771078232995,-500.0,0.00017861,2]
[405358189,1771078233005,-500.0,0.00017861,2]
[405358190,1771078233015,-500.0,0.00017861,2]
[405358191,1771078233024,-500.0,0.00017861,2]
[405358192,1771078233034,-500.0,0.00017861,2]
[405358193,1771078233044,-183.75691491,0.00017861,2]
[405358194,1771078233054,-155.0,0.00017861,2]
[405358195,1771078233064,-42.23799325,0.00017862,2]
[405358196,1771078233081,-292.44889365,0.00017862,2]
[405358197,1771078233091,-169.66176348,0.00017862,2]
[405358198,1771078233102,-404.53844161,0.00017862,2]
[405358199,1771078233114,-612.35383556,0.00017862,2]
[405358200,1771078233129,-475.94328414,0.00017862,2]
[405358205,1771078238034,-151.0,0.00016982,2]
[405358206,1771078238044,-34.68940381,0.00017862,2]
[405358207,1771078238058,-1677.04921806,0.00017862,2]
[405358208,1771078238070,-2295.3256262,0.00017862,2]
[405358209,1771078238081,-368.75366433,0.00017862,2]
[405358214,1771078240325,-74897.78072921,0.00017862,2]
[405358215,1771078240335,-131458.99024542,0.00017862,2]
[405358216,1771078240361,-168876.29273198,0.00017862,2]
[405358217,1771078240370,-3047.9083036,0.00017862,2]
[405358218,1771078240379,-151.0,0.00017862,2]
[405358219,1771078240389,-151.0,0.00017862,2]
[405358220,1771078240398,-151.0,0.00017862,2]
[405358221,1771078240407,-487.0,0.00017862,2]
[405358222,1771078240417,-487.0,0.00017862,2]
[405358223,1771078240427,-487.0,0.00017862,2]
[405358224,1771078240436,-487.0,0.00017862,2]
[405358225,1771078240445,-585.47,0.00017862,2]
[405358226,1771078240454,-500.0,0.00017899,2]
[405358227,1771078240464,-503.95018767,0.00017899,2]
[405358228,1771078240474,-500.0,0.00017899,2]
[405358229,1771078240483,-500.0,0.00017899,2]
[405358230,1771078240493,-500.0,0.00017899,2]
[405358231,1771078240503,-500.0,0.00017899,2]
[405358232,1771078240512,-228.62984043,0.00017899,2]
[405358233,1771078240522,-204.36978666,0.000179,2]
[405358234,1771078240531,-208.96224484,0.000179,2]
[405358235,1771078240540,-1732.72907781,0.000179,2]
[405358237,1771078240549,-1732.72907778,0.000179,2]
[405358238,1771078240559,-1732.72907778,0.000179,2]
[405358239,1771078240568,-378.6507026,0.000179,2]
[405358240,1771078240577,-1732.72907778,0.00017943,2]
[405358241,1771078240586,-5520.0,0.00017973,2]
[405358242,1771078240595,-207.45341445,0.00017999,2]
[405358243,1771078240604,-726.39,0.00018,2]
[405358244,1771078240615,-39397.46985483,0.00018,2]
[405358245,1771078240624,-1066758.52533108,0.00018,2]
[405358246,1771078240635,-1254.44569842,0.00018,2]
[405358247,1771078240674,-6935.5,0.00018,2]
[405358258,1771078246123,-61.94813527,0.00018,2]
[405358259,1771078246134,-61486.27057427,0.00018,2]
[405358260,1771078246206,-2799.58221255,0.00018,2]
[405358261,1771078246221,-7755.77837577,0.00018,2]
[405358319,1771079132808,45022.45488792,8.36e-06,2]
[405358321,1771079159451,23636.46873857,8e-05,2]
[405358331,1771079296710,392.46802039,7.888e-05,2]
[405358344,1771079432070,-161.58,0.00013183,2]
[405358345,1771079432079,-168.76,0.00014313,2]
[405358346,1771079432091,-322.0,0.00014501,2]
[405358347,1771079432101,-287.66,0.00014501,2]
[405358348,1771079432130,-539.07428944,0.00014501,2]
[405358349,1771079432191,-373.26571056,0.00014501,2]
[405358350,1771079432201,-250.0,0.00014502,2]
[405358351,1771079432211,-1920.65909888,0.00014502,2]
[405358352,1771079432220,-300.0,0.00014502,2]
[405358353,1771079432231,-250.0,0.00014502,2]
[405358354,1771079432242,-250.0,0.00014502,2]
[405358355,1771079432253,-613.22338336,0.00014502,2]
[405358356,1771079432265,-420.21,0.00014502,2]
[405358357,1771079432277,-420.21,0.00014776,2]
[405358358,1771079432287,-212.50670803,0.0001505,2]
[405358364,1771079438153,-207.70329197,0.0001505,2]
[405358365,1771079438163,-420.21,0.00015324,2]
[405358366,1771079438173,-420.22,0.00015598,2]
[405358367,1771079438183,-1638.0,0.00015951,2]
[405358368,1771079438194,-405.043,0.0001645,2]
[405358369,1771079438204,-200.0,0.00016596,2]
[405358370,1771079438214,-151.0,0.00016683,2]
[405358371,1771079438224,-36.57370803,0.00016686,2]
[405358372,1771079438244,-2463.42629197,0.00016686,2]
[405358373,1771079438254,-5305.95124505,0.00016686,2]
[405358374,1771079438265,-1028.39219189,0.00016686,2]
[405358375,1771079438280,-1188.74622491,0.00016686,2]
[405358376,1771079438299,-686.70881114,0.00016686,2]
[405358377,1771079438316,-26852.00298301,0.00016686,2]
[405358378,1771079438328,-1349.90711029,0.00016686,2]
[405358379,1771079438372,-988.23777312,0.00016686,2]
[405358380,1771079440221,-151.0,0.00016683,2]
[405358381,1771079440238,-151.0,0.00016683,2]
[405358382,1771079440247,-514.78701816,0.00016686,2]
[405358383,1771079440360,-347.506,0.00016686,2]
[405358384,1771079440523,-783553.73864243,0.00016686,2]
[405358386,1771079440533,-4413.4404993,0.00016722,2]
[405358388,1771079440543,-200.0,0.00016776,2]
[405358390,1771079440554,-200.0,0.00016776,2]
[405358392,1771079440564,-500.0,0.00016776,2]
[405358394,1771079440574,-3615.43795551,0.00016822,2]
[405358396,1771079440585,-9999.99,0.00016922,2]
[405358398,1771079440595,-8677.14,0.00016922,2]
[405358399,1771079440604,-1343.33,0.00016922,2]
[405358400,1771079440614,-3208.15,0.00016922,2]
[405358401,1771079440624,-23720.35,0.00016922,2]
[405358402,1771079440633,-3834.41,0.00016922,2]
[405358403,1771079440643,-299.99,0.00016922,4]
[405358404,1771079440653,-9999.99,0.00016922,2]
[405358405,1771079440663,-6254.23,0.00016922,2]
[405358406,1771079440673,-150.99,0.00016922,2]
[405358407,1771079440682,-515.45,0.00016922,2]
[405358408,1771079440692,-1000.0,0.00016986,2]
[405358409,1771079440703,-270.868948,0.00017068,7]
[405358410,1771079440712,-330.38133095,0.00017099,2]
[405358412,1771079440722,-700.0,0.00017245,2]
[405358414,1771079440731,-342.0,0.00017287,2]
[405358416,1771079440740,-242.83,0.00017481,2]
[405358418,1771079440749,-205.0,0.0001753,2]
[405358420,1771079440759,-1670.97724254,0.0001764,2]
[405358422,1771079440768,-508.4,0.00017663,2]
[405358424,1771079440777,-200.0,0.00017856,2]
[405358426,1771079440787,-1646.09262391,0.000179,2]
[405358427,1771079440797,-1050.221936,0.00017966,2]
[405358428,1771079440806,-1432.6023658,0.00017966,2]
[405358429,1771079440816,-184.3768322,0.00017966,2]
[405358430,1771079440826,-5406.4158749,0.00017966,2]
[405358431,1771079440836,-350.0,0.00017975,2]
[405358432,1771079440845,-224.18708814,0.0001799,2]
[405358433,1771079440855,-500.0,0.00017999,2]
[405358434,1771079440865,-572.16313757,0.00017999,2]
[405358435,1771079440875,-500.0,0.00017999,2]
[405358436,1771079440884,-352.76513137,0.00017999,2]
[405358437,1771079440894,-500.0,0.00017999,2]
[405358438,1771079440903,-410.0408883,0.00017999,2]
[405358439,1771079440913,-500.0,0.00017999,2]